Cogmind - Beta 13 @@@ ROGUE MODE // 2024.02.28 @ 15:17:15 Player: Treadwheel Result: Destroyed by G-34 Mercenary with Small Laser Performance ------------- Evolutions (0) 0 Regions Visited (1) 200 Robots Destroyed (18) 90 Value Destroyed (344) 344 Prototype IDs (0) 0 Alien Tech Used (0) 0 Bonus (0) 0 TOTAL SCORE: 634 Bonus ------- None Cogmind --------- Core Integrity 0/250 Matter 299/300 Energy 99/100 System Corruption 0% Temperature Cool (16) Movement Treading (320) Ox2 Location -10/Materials Parts ------- > --- POWER (1) -------- (None) > --- PROPULSION (2) --- Light Treads Compact Wheel > --- UTILITY (2) ------ High-capacity Storage Unit Sensor Array > --- WEAPON (2) ------- Small Laser Light Assault Rifle > --- INVENTORY (20) --- Light Ion Engine Aluminum Leg Aluminum Leg Wheel Compact Wheel Small Storage Unit Visual Processing Unit Signal Interpreter Terrain Scanner Peak State ------------ > --- POWER ------------ Light Nuclear Core > --- PROPULSION ------- Light Treads Compact Wheel > --- UTILITY ---------- High-capacity Storage Unit Improved Terrain Scanner > --- WEAPON ----------- Medium Laser Light Cannon > --- INVENTORY -------- Light Ion Engine Light Treads Aluminum Leg Aluminum Leg Wheel Compact Wheel Small Storage Unit Light Assault Rifle [Rating: 11] Favorites ----------- Power Light Ion Engine Engine Light Ion Engine Power Core Light Nuclear Core Propulsion Light Treads Treads Light Treads Leg Aluminum Leg Wheel Compact Wheel Utility High-capacity Storage Unit Device Improved Terrain Scanner Storage High-capacity Storage Unit Weapon Light Assault Rifle Energy Gun Medium Laser Ballistic Gun Light Assault Rifle Ballistic Cannon Light Cannon Build | -11 -10 ------- Run | Yrd Mat Slots Evolved . | . . Power . | . . Propulsion . | . . Utility . | . . Weapon . | . . Parts Attached 14 | 3 11 Power 2 | . 2 Engine 1 | . 1 Core 1 | . 1 Reactor . | . . Propulsion 4 | 2 2 Treads 2 | 1 1 Leg . | . . Wheel 2 | 1 1 Hover . | . . Flight . | . . Utility 4 | . 4 Device 3 | . 3 Storage 1 | . 1 Processor . | . . Hackware . | . . Protection . | . . Artifact . | . . Weapon 4 | 1 3 Energy Gun 2 | 1 1 Energy Cannon . | . . Ballistic Gun 1 | . 1 Ballistic Cannon 1 | . 1 Launcher . | . . Special Weapon . | . . Impact Weapon . | . . Slashing Weapon . | . . Piercing Weapon . | . . Special Melee Weapon . | . . Unidentified Prototypes . | . . Parts Lost 7 | . 7 Power 2 | . 2 Propulsion 2 | . 2 Utility 1 | . 1 Weapon 2 | . 2 Highest Loss Streak 5 | . 5 To Critical Strikes . | . . Average Slot Usage (%) 86 | . 86 Engine 6 | . 6 Core 3 | . 3 Treads 14 | . 14 Wheel 13 | . 13 Device 10 | . 10 Storage 14 | . 14 Energy Gun 9 | . 9 Ballistic Gun 7 | . 7 Ballistic Cannon 6 | . 6 Naked Turns . | . . Heaviest Build 51 | 11 51 Greatest Support 16 | 16 16 Greatest Overweight (x) 3 | . 3 Average Overweight (x) . | . 1 Largest Inventory Capacity 20 | 8 20 Average Capacity 15 | 8 16 Most Carried 9 | 8 9 Average Carried 7 | 6 7 Final Capacity 20 | 8 20 Final Carried 9 | 8 9 Class Distribution -------------------- 100% | Mutant Dominant Class ---------------- Mutant | -10/Materials Resources | -11 -10 ----------- Run | Yrd Mat Matter Collected 496 | 253 243 Remotely . | . . Salvage Created 626 | 186 440 Parts 36 | 14 22 Haulers Intercepted . | . . Recyclers Shooed 1 | . 1 Parts Field Recycled . | . . Retrieved Matter . | . . Parts Self-Destructed . | . . Prevented . | . . Kills | -11 -10 ------- Run | Yrd Mat Combat Hostiles Destroyed 6 | . 6 Guns 4 | . 4 Cannons 2 | . 2 Classes Destroyed 5 | 2 3 Tunneler 5 | 5 . Recycler 3 | 1 2 Operator 2 | . 2 Watcher 2 | . 2 Grunt 6 | . 6 Best Kill Streak 4 | 4 3 Combat Bots Only 1 | . 1 Max Kills in Single Turn 1 | 1 1 Gunslinging . | . . Exploded . | . . Melee . | . . Uniques/NPCs Destroyed . | . . Combat | -11 -10 -------- Run | Yrd Mat Hostile Shots Fired 85 | . 85 Missed 17 | . 17 Damage Taken 981 | . 981 Core 251 | . 251 Absorbed by Shields . | . . Core Remaining (%) 100 | 100 . Volleys Fired 117 | 23 94 Largest 2 | 2 2 Hottest 85 | 70 85 Shots Fired 171 | 46 125 Gun 146 | 46 100 Cannon 25 | . 25 Launcher . | . . Special . | . . Kinetic 117 | 23 94 Thermal 54 | 23 31 Explosive . | . . Electromagnetic . | . . Robot Hit Streak 15 | 5 15 Robot Miss Streak 6 | 3 6 Penetration Max . | . . Secondary Targets . | . . Shots Hit Robots 111 | 28 83 Core Hits 37 | 11 26 Critical Kills . | . . Critical Parts Destroyed . | . . Critical Strikes 1 | . 1 Burn 1 | . 1 Melee Attacks . | . . Impact . | . . Slashing . | . . Piercing . | . . Sneak Attacks . | . . Combat Hostiles . | . . Follow-up Attacks . | . . Damage Inflicted 1199 | 303 896 Guns 930 | 303 627 Cannons 215 | . 215 Explosions 54 | . 54 Melee . | . . Ramming . | . . Kinetic 723 | 115 608 Thermal 476 | 188 288 Explosive . | . . Electromagnetic . | . . Impact . | . . Slashing . | . . Piercing . | . . Highest Corruption . | . . Average Corruption . | . . Corruption Purged . | . . Corruption Blocked . | . . Overload Shots . | . . Overflow Damage 89 | . 89 Projectiles 8 | . 8 Explosions 81 | . 81 Melee . | . . Knockbacks 8 | . 8 Impact . | . . Kinetic 6 | . 6 Secondary 2 | . 2 Self-Inflicted Damage 114 | . 114 Shots 1 | . 1 Rammed . | . . Targets Rammed . | . . Kicked . | . . Crushed . | . . Highest Temperature 221 | 120 221 Average Temperature 51 | 42 55 Received Heat Transfer 504 | . 504 Siege Activations . | . . Robots Corrupted . | . . Combat Hostiles . | . . Parts Fried . | . . Impact Corruptions . | . . Robots Melted . | . . Combat Hostiles . | . . Parts Melted 2 | 1 1 Heat Transferred 1370 | 555 815 Parts Sabotaged . | . . Parts Stolen . | . . Parts Stripped . | . . Power Chain Reactions . | . . Alert | -11 -10 ------- Run | Yrd Mat Peak Influence 355 | 30 355 Initial 19 | . 19 Average 135 | 12 166 Maximum Alert Level 1 | . 1 Low Security (%) 79 | 100 73 Level 1 20 | . 26 Level 2 . | . . Level 3 . | . . Level 4 . | . . Level 5 . | . . High Security . | . . Max Security . | . . Squads Dispatched 1 | . 1 Investigation . | . . Extermination . | . . Reinforcement 1 | . 1 Assault . | . . Garrison . | . . Intercept . | . . Searches Triggered . | . . Construction Impeded . | . . Haulers Reinforced . | . . Active Scanning Responses . | . . Cargo Convoy Interrupts . | . . Stealth | -11 -10 --------- Run | Yrd Mat Distress Signals 1 | . 1 Communications Jammed . | . . Distress Signals . | . . Times Spotted 23 | . 23 Peak Tracking Total 5 | . 5 Tactical Retreats 5 | . 5 Traps | -11 -10 ------- Run | Yrd Mat Traps Triggered . | . . Indirectly . | . . Trap Hack Attempts . | . . Triggered . | . . Disarmed . | . . Reprogrammed . | . . Reused . | . . Traps Extracted . | . . Installed . | . . Triggered . | . . Machines | -11 -10 ---------- Run | Yrd Mat Machines Disabled 1 | . 1 Max in Single Turn 1 | . 1 Machines Repaired . | . . Machines Dismantled . | . . Machines Sabotaged . | . . Overloaded Fab Kills . | . . Hacking | -11 -10 --------- Run | Yrd Mat Machines Accessed 3 | . 3 Terminals 1 | . 1 Fabricators . | . . Repair Stations . | . . Recycling Units 2 | . 2 Scanalyzers . | . . Garrison Access . | . . Total Hacks 6 | . 6 Successful 3 | . 3 Failed 3 | . 3 Catastrophic 1 | . 1 Database Lockouts . | . . Manual 3 | . 3 Terminals 1 | . 1 Fabricators . | . . Repair Stations . | . . Recycling Units 5 | . 5 Scanalyzers . | . . Garrison Access . | . . Terminal Hacks . | . . Fabricator Hacks . | . . Repair Station Hacks . | . . Recycling Unit Hacks 1 | . 1 Retrieve Components 1 | . 1 Scanalyzer . | . . Garrison Access Hacks . | . . Unauthorized Hacks 2 | . 2 Terminals . | . . Fabricators . | . . Repair Stations . | . . Recycling Units 2 | . 2 Reject 2 | . 2 Scanalyzers . | . . Garrison Access . | . . Data Cores Recovered 1 | . 1 Used . | . . Hacking Detections 2 | . 2 Full Trace Events . | . . Feedback Events . | . . Feedback Blocked . | . . Robot Schematics Acquired . | . . Robots Built . | . . Authchips . | . . Time . | . . Total Robot Build Rating . | . . Part Schematics Acquired . | . . Parts Built . | . . Authchips . | . . Time . | . . Total Part Build Rating . | . . Parts Repaired . | . . Time . | . . Parts Recycled . | . . Recycled Matter . | . . Retrieved Matter . | . . Retrieved Components 2 | . 2 Parts Scanalyzed . | . . Part Schematics Acquired . | . . Parts Damaged . | . . Bothacking | -11 -10 ------------ Run | Yrd Mat Used RIF Installer . | . . Robots Hacked . | . . Non-combat . | . . Combat . | . . Robot Hacks Applied . | . . Relay Couplers Released . | . . Fabnet Peak Effective % . | . . Robots Rewired . | . . Allies Hacked . | . . Hacks Repelled . | . . Allies | -11 -10 -------- Run | Yrd Mat Total Allies . | . . Largest Group . | . . Highest-Rated Group . | . . Highest-Rated Ally . | . . Total Orders . | . . Ally Attacks . | . . Total Damage . | . . Kills . | . . Allies Corrupted . | . . Allies Melted . | . . Intel | -11 -10 ------- Run | Yrd Mat Robot Analysis Total . | . . Derelict Logs Recovered . | . . Drone Launches . | . . Drone Recoveries . | . . Exploration | -11 -10 ------------- Run | Yrd Mat Turns Passed 725 | 147 578 Spaces Moved 320 | 77 243 Core . | . . Treads . | . . Legs . | . . Wheels 320 | 77 243 Hover . | . . Flight . | . . Fastest Speed 100 | 100 100 Average Speed 114 | 100 119 Slowest Speed 145 | 100 145 Overloaded Moves . | . . Propulsion Burnouts . | . . Robots Hopped . | . . Cave-ins Triggered . | . . Exploration Rate (%) 14 | 4 24 Regions Visited 1 Branch Regions . Pre-discovered Areas . | . . Known Exits Taken . | . . Unknown Exits Taken 1 | 1 . Scrap Searched . | . . Spaces Dug . | . . Terrain Destroyed 40 | . 40 Melee . | . . Projectile . | . . AOE 40 | . 40 Terrain Rammed . | . . Walls Destroyed . | . . Machines Disabled . | . . Actions | -11 -10 --------- Run | Yrd Mat Total 523 | 104 419 Wait 64 | . 64 Move 319 | 76 243 Hop . | . . Pick Up 5 | 2 3 Fast Attach 5 | . 5 Attach 4 | . 4 Detach 2 | . 2 Swap 5 | 3 2 Drop 2 | . 2 Fire 117 | 23 94 Melee . | . . Ram . | . . Kick . | . . Crush . | . . Escape Stasis . | . . Rewire . | . . Trap . | . . Miscellaneous . | . . Route ------- -11/Scrapyard -10/Materials History --------- Turn | Location | Event 6 | -11/Scrapyard | Discovered new exit (range 3) 148 | -11/Scrapyard | Entered Materials 320 | -10/Materials | Build established: Mutant 436 | -10/Materials | Core integrity fell below 50% 507 | -10/Materials | Lost 5 parts (2n1u2w) 519 | -10/Materials | Core integrity fell below 20% 726 | -10/Materials | Destroyed by G-34 Mercenary with Small Laser Last Messages --------------- 00587_ Acquired 1 matter. 00587_ K-01 Serf collects debris. 00588_ R-06 Scavenger destroyed. 00593_ U-05 Engineer lays Concrete. 00596_ R-06 Scavenger collects Signal Interpreter. 00600_ R-06 Scavenger collects Sensor Array. 00602_ Destroyed Lgt. Ion Engine. 00611_ R-06 Scavenger destroyed. 00615_ Acquired Sensor Array. 00618_ Acquired Signal Interpreter. 00619_ Acquired 24 matter. 00623_ Acquired Sml. Laser. 00626_ Acquired Com. Wheel. 00627_ Acquired 10 matter. 00638_ Connecting with Recycling Unit... >>Trojan(Reject) Trojan loaded successfully. Testing... Ejection routine running. 00724_ G-34 Mercenary destroyed. Map ----- +----------------------------------------------------+ | | | | | | | | | | | ???????????????????????????????????????????????? | | ???????????????????????????????????????????????? | | ???????????????????????????????????????????????? | | ????????????????#######################????????? | | ????????????????# ???????? | | ????????????????# ???????? | | ????????????????# """ ??????? | | ????????????????######### T" #????????????? | | ????????????????????????# """ #????????????? | | ????????????????????????# #????????????? | | ????????????????????????# #????????????? | | ????????????????????????# #????????????? | | ????????????????????????# #????????????? | | ????????????????????????# #????????????? | | ????????????????????????# """" #????????????? | | ??????????????########### """" ?????????? | | ?????########## """" ????????? | | ?????# ????????? | | ?????# ######## % ???????? | | ?????# #??????# ####g####### ????????? | | ?????# #??????# # =@ #? ????????? | | ?????# #???#??# # """ #?? """"""?????????? | | ???#?# #??????# # "Y" #?? """""??????????? | | ###### ######## # = #????"?????????????? | | # # # ## ###########??????????????????? | | #" # # ^^ ? ???????????????????????? | | #T # # ? ^^ ??????????????????? | | #" # # ?^ ??????????????????? | | # # # % #################?????????????????? | | # + ##^^ #######"#????? ????????????????????? | | # # ##^^^# ###?????????????????????????? | | # # ## %=# #######?????????????????????? | | #! # ## + + #?????????????????????? | | ######+## # #######?#???????????????????? | | # # " "##???#?????????????????????? | | # """ # " " #?????????????????????????? | | # "Y" # """###""##??#??????????????????????? | | # %#%= " #???#??????????????????????? | | # # #########??#?#?????????????????????? | | # %+ #??#???##???#??????????????????????? | | # # #????#####?????????????????????????? | | # """ # ###??#?????????????????????????????? | | # """ # #?#??#??#?????#????????????????????? | | # """ # #??????????? ??????????????????????? | | # # #???##???? ????????????????????????? | +----------------------------------------------------+ Best States ------------- Heat Dissipation 25 Energy Generation 14 Energy Capacity 250 Matter Stores 300 Matter Capacity 300 Sight Range 16 Robot Scan Range 14 Terrain Scan Range 16 Terrain Scan Density 10 Evasion (%) 40 Recoil Reduction 1 Item Schematics ----------------- None Robot Schematics ------------------ None Fabricated ------------ Nothing Alien Tech Used ----------------- None Achievements -------------- None Challenges ------------ None Game ------ Seed VortexHardlightRouter Manual? 0 Play Time 00:13:48 Cumulative 42.7 hours Start 2024.02.28 @ 15:07:05 End 2024.02.28 @ 15:17:15 Sessions 1 Manual Loads 0 Difficulty Rogue Special Mode None Game No. 22 Rogue 22 Adventurer 0 Explorer 0 Win Type - Total 1 Types 1/0/0/0/0/0/0/0/0 Lore% 26 Gallery% 41 Achievement% 34 Wizard Run 0 Options --------- Layout 0 ASCII 0 Keyboard 0 Movement Numpad Keybinds 0 Fullscreen 1 Font 12/Smallcaps Map View 83x54 Zoom Use 0% Tactical HUD 1 Map Filters NONE Filters NONE Steam 1 RUN: fb9be3fb-5ca9-4875-9a30-2e59d4a6f172